bitfinex/quotes_BTCUSD_20230114
["timestamp","ask_amount","ask_price","bid_price","bid_amount"]
[1673735528400,1.22490928,20890.0,20889.0,0.01362129]
[1673735529169,1.01025998,20890.0,20889.0,0.01362129]
[1673735529913,1.00175998,20890.0,20889.0,0.01362129]
[1673735530673,0.858697,20890.0,20889.0,0.01362129]
[1673735530934,0.38,20890.0,20888.0,0.00864674]
[1673735531209,0.38,20890.0,20887.0,0.12150578]
[1673735532470,0.3,20890.0,20887.0,0.12150578]
[1673735532730,0.31,20890.0,20888.0,0.004]
[1673735532974,0.31,20890.0,20887.0,0.12150578]
[1673735532975,0.3,20890.0,20887.0,0.12150578]
[1673735533224,0.309,20890.0,20887.0,0.15850578]
[1673735534704,0.009,20890.0,20887.0,0.15850578]
[1673735534955,0.309,20890.0,20887.0,0.15850578]
[1673735535174,0.009,20890.0,20887.0,0.63726578]
[1673735543542,0.009,20890.0,20887.0,0.15850578]
[1673735544622,0.009,20890.0,20887.0,0.63725778]
[1673735545154,0.009,20890.0,20887.0,1.11602378]
[1673735547683,0.009,20890.0,20888.0,0.1145]
[1673735548685,0.65771228,20891.0,20888.0,0.1145]
[1673735548935,0.01,20890.0,20888.0,0.1185]
[1673735549202,0.15306298,20890.0,20888.0,0.1185]
[1673735549975,0.63177498,20890.0,20888.0,0.1185]
[1673735550728,1.11047198,20890.0,20888.0,0.1185]
[1673735551466,1.32512128,20890.0,20888.0,0.1185]
[1673735551696,0.3,20889.0,20888.0,0.1185]
[1673735551949,0.47872,20889.0,20888.0,0.1185]
[1673735552640,0.47872,20889.0,20888.0,0.1145]
[1673735553114,0.78872,20889.0,20888.0,0.1185]
[1673735553330,0.93178298,20889.0,20888.0,0.1185]
[1673735554394,1.41050298,20889.0,20888.0,0.1185]
[1673735554919,1.41050298,20889.0,20888.0,0.004]
[1673735555169,1.62515228,20889.0,20888.0,0.004]
[1673735555714,1.4820893,20889.0,20888.0,0.004]
[1673735556451,1.73721837,20889.0,20888.0,0.004]
[1673735556957,1.4410193,20889.0,20887.0,0.12150578]
[1673735557183,0.44339311,20888.0,20887.0,0.12150578]
[1673735557427,0.92213611,20888.0,20887.0,0.12150578]
[1673735557679,0.62213611,20888.0,20887.0,0.12150578]
[1673735557921,0.478743,20888.0,20887.0,0.12150578]
[1673735558171,0.62213611,20888.0,20887.0,0.12150578]
[1673735558426,0.62713611,20888.0,20887.0,0.12550578]
[1673735558677,0.62713611,20888.0,20887.0,0.01100578]
[1673735562887,0.92713611,20888.0,20887.0,0.01100578]
[1673735563399,0.62713611,20888.0,20887.0,0.01100578]
[1673735564162,0.92713611,20888.0,20887.0,0.01100578]
[1673735564668,0.62713611,20888.0,20887.0,0.01100578]
[1673735565429,0.84178541,20888.0,20887.0,0.01100578]
[1673735565958,1.14178541,20888.0,20887.0,0.01100578]
[1673735567486,0.9983923,20888.0,20887.0,0.01100578]
[1673735567986,1.14183087,20888.0,20887.0,0.01100578]
[1673735568755,0.9983923,20888.0,20887.0,0.01100578]
[1673735570262,1.28459137,20888.0,20887.0,0.01100578]
[1673735570982,0.9983923,20888.0,20887.0,0.01100578]
[1673735571934,0.6983923,20888.0,20887.0,0.01100578]
[1673735572195,0.84181732,20888.0,20887.0,0.01100578]
[1673735573163,1.14181732,20888.0,20887.0,0.01100578]
[1673735573687,0.84181732,20888.0,20887.0,0.01100578]
[1673735573935,1.14181732,20888.0,20887.0,0.01100578]
[1673735575466,2.03765449,20888.0,20887.0,0.01100578]
[1673735575991,1.82300519,20888.0,20887.0,0.01100578]
[1673735576504,1.54868507,20888.0,20887.0,0.01100578]
[1673735577229,1.69151764,20888.0,20887.0,0.01100578]
[1673735577476,1.66218507,20888.0,20887.0,0.01100578]
[1673735577739,2.4825296,20888.0,20887.0,0.01100578]
[1673735577993,2.1627396,20888.0,20887.0,0.01100578]
[1673735579196,2.1627396,20888.0,20887.0,0.01090101]
[1673735579455,2.1817796,20888.0,20887.0,0.01090101]
[1673735579918,2.1627396,20888.0,20887.0,0.01090101]
[1673735580168,2.1817796,20888.0,20887.0,0.01090101]
[1673735580413,2.50210627,20888.0,20887.0,0.01090101]
[1673735580661,2.18231627,20888.0,20887.0,0.01090101]
[1673735581025,2.17731627,20888.0,20887.0,0.01090101]
[1673735582201,2.49710627,20888.0,20887.0,0.01090101]
[1673735582700,2.21037053,20888.0,20887.0,0.01090101]
[1673735582946,2.10028453,20888.0,20887.0,0.01090101]
[1673735583193,2.19133053,20888.0,20887.0,0.01090101]
[1673735583465,1.89058053,20888.0,20887.0,0.01090101]
[1673735583980,2.17730553,20888.0,20887.0,0.01090101]
[1673735584795,2.98279722,20888.0,20887.0,0.01090101]
[1673735585068,2.37628222,20888.0,20887.0,0.01090101]
[1673735585328,2.69607222,20888.0,20887.0,0.01090101]
[1673735585583,2.37628222,20888.0,20887.0,0.00590101]
[1673735585829,2.69607222,20888.0,20887.0,0.00590101]
[1673735586074,2.8725678,20888.0,20887.0,0.00590101]
[1673735586303,2.6628638,20888.0,20887.0,0.00590101]
[1673735586519,2.9826538,20888.0,20887.0,0.00590101]
[1673735586763,2.37628222,20888.0,20887.0,0.00590101]
[1673735587023,2.69607222,20888.0,20887.0,0.00590101]
[1673735588021,2.58598622,20888.0,20887.0,0.00590101]
[1673735588782,2.35724222,20888.0,20887.0,0.00590101]
[1673735589038,2.69496222,20888.0,20887.0,0.00590101]
[1673735589291,2.58487622,20888.0,20887.0,0.00590101]
[1673735589539,2.37517222,20888.0,20887.0,0.00590101]
[1673735590286,2.69496222,20888.0,20887.0,0.00590101]
[1673735590527,2.58487622,20888.0,20887.0,0.00590101]
[1673735590770,2.69496222,20888.0,20887.0,0.00590101]
[1673735591538,2.37517222,20888.0,20887.0,0.00590101]
[1673735591812,2.37628222,20888.0,20887.0,0.00590101]
[1673735592325,2.69607222,20888.0,20887.0,0.00590101]
[1673735592586,2.58598622,20888.0,20887.0,0.00590101]
[1673735593367,2.37628222,20888.0,20887.0,0.00590101]
[1673735593633,2.66287446,20888.0,20887.0,0.00590101]
[1673735593880,2.67703222,20888.0,20887.0,0.00590101]
[1673735594100,2.37628222,20888.0,20887.0,0.00590101]
[1673735594575,2.80057155,20888.0,20887.0,0.00590101]
[1673735594797,2.69655625,20888.0,20887.0,0.00590101]
[1673735595056,1.90504843,20888.0,20887.0,0.00590101]
[1673735595306,2.22483843,20888.0,20887.0,0.00590101]
[1673735596148,2.58302178,20888.0,20887.0,0.00590101]
[1673735596653,2.47293578,20888.0,20887.0,0.00590101]
[1673735596904,2.26323178,20888.0,20887.0,0.00590101]
[1673735597240,0.50600409,20888.0,20887.0,0.00590101]
[1673735597484,0.005,20888.0,20887.0,0.00590101]
[1673735597735,0.005,20888.0,20887.0,0.12040101]
[1673735597970,0.005,20888.0,20887.0,0.59916701]
[1673735598468,0.005,20888.0,20887.0,1.07793301]
[1673735600431,0.005,20888.0,20887.0,3.327232]
[1673735600684,0.28655093,20894.0,20887.0,3.18438804]
[1673735600685,0.35822621,20894.0,20887.0,3.18438804]
[1673735600932,0.35822621,20894.0,20892.0,0.1137]
[1673735601199,0.14329048,20894.0,20893.0,1.14798395]
[1673735601450,0.14329048,20894.0,20893.0,1.071758]
[1673735601745,0.50119475,20896.0,20893.0,1.071758]
[1673735601746,0.35822621,20896.0,20893.0,1.071758]
[1673735601996,0.15092348,20897.0,20894.0,0.1145]
[1673735602290,0.15092348,20897.0,20894.0,1.26241195]
[1673735602801,0.007633,20897.0,20894.0,1.26241195]
[1673735603061,0.021633,20897.0,20894.0,1.108686]
[1673735603881,0.021633,20897.0,20895.0,0.1145]
[1673735604139,0.021633,20897.0,20895.0,0.59307]
[1673735604940,0.28486658,20900.0,20896.0,0.249]
[1673735605196,0.28486658,20900.0,20897.0,0.78275895]
[1673735605446,0.15,20900.0,20897.0,1.26129595]
[1673735605702,0.28655093,20902.0,20897.0,1.07057]
[1673735605950,0.35818335,20903.0,20898.0,0.19072595]
[1673735605951,0.28655093,20903.0,20898.0,0.19072595]
[1673735606247,0.28655093,20903.0,20899.0,0.19072595]
[1673735606452,0.01904,20901.0,20899.0,0.19072595]
[1673735606693,0.01904,20901.0,20897.0,0.1135]
[1673735606694,0.975957,20901.0,20897.0,0.1135]
[1673735606940,0.3,20900.0,20897.0,0.1135]
[1673735607193,1.259963,20900.0,20897.0,0.1225]
[1673735607446,1.259963,20900.0,20897.0,0.1135]
[1673735607691,1.259963,20900.0,20899.0,0.005]
[1673735607905,1.256963,20900.0,20897.0,0.1135]
[1673735608198,1.259963,20900.0,20897.0,0.1225]
[1673735608452,0.956963,20900.0,20897.0,0.1135]
[1673735608700,1.088963,20900.0,20899.0,0.005]
[1673735608944,1.256963,20900.0,20897.0,0.1135]
[1673735609160,0.3,20899.0,20897.0,0.1135]
[1673735609409,0.478514,20898.0,20897.0,0.1135]
[1673735609916,0.478514,20898.0,20897.0,0.1225]
[1673735610127,0.478514,20898.0,20897.0,0.1135]
[1673735610374,0.478514,20898.0,20897.0,0.1225]
[1673735610628,0.778514,20898.0,20897.0,0.1135]
[1673735610900,0.778514,20898.0,20897.0,0.1225]
[1673735610901,0.781514,20898.0,20897.0,0.1225]
[1673735611157,1.260028,20898.0,20897.0,0.1225]
[1673735611923,1.279068,20898.0,20897.0,0.1225]
[1673735612467,0.003,20898.0,20897.0,0.1225]
[1673735614149,0.29100089,20900.0,20897.0,0.1225]
[1673735614887,0.76947289,20900.0,20897.0,0.1225]
[1673735615872,0.76947289,20900.0,20897.0,0.1135]
[1673735616113,0.77247289,20900.0,20897.0,0.1245]
[1673735616611,1.25094089,20900.0,20897.0,0.1245]
[1673735616864,0.95994,20900.0,20897.0,0.1245]
[1673735617404,0.95994,20900.0,20897.0,0.011]
[1673735618652,0.3,20899.0,20897.0,0.011]
[1673735619403,0.303,20900.0,20897.0,0.011]
[1673735619896,0.3,20900.0,20895.0,0.593076]
[1673735620142,0.3,20900.0,20895.0,0.78380195]
[1673735620378,0.003,20899.0,20897.0,0.011]
[1673735620627,1.256971,20900.0,20895.0,0.78380195]
[1673735621364,0.956971,20900.0,20895.0,0.78380195]
[1673735621624,0.959971,20900.0,20897.0,0.011]
[1673735621878,0.478486,20900.0,20895.0,1.071648]
[1673735622126,0.491486,20900.0,20895.0,1.31437395]
[1673735625343,0.491486,20900.0,20895.0,0.645065]
[1673735625596,0.31904,20899.0,20895.0,0.645065]
[1673735625841,0.797535,20899.0,20895.0,0.1665]
[1673735627101,1.276026,20899.0,20895.0,0.1665]
[1673735627646,1.276026,20899.0,20895.0,0.1145]
[1673735627844,1.269986,20899.0,20895.0,0.1665]
[1673735628060,1.289026,20899.0,20895.0,0.1665]
[1673735628512,1.269986,20899.0,20895.0,0.1665]
[1673735629850,1.264986,20899.0,20895.0,0.1665]
[1673735632655,1.379486,20899.0,20895.0,0.052]
[1673735634432,0.01904,20898.0,20895.0,0.052]
[1673735634680,0.957074,20897.0,20895.0,0.052]
[1673735636465,0.957074,20897.0,20892.0,0.592344]
[1673735636721,0.970074,20897.0,20895.0,0.052]
[1673735637224,0.957074,20897.0,20892.0,0.592344]
[1673735637480,0.957074,20897.0,20892.0,0.1137]
[1673735637745,0.3,20896.0,20892.0,0.1667]
[1673735638001,0.778574,20896.0,20892.0,0.1137]
[1673735638255,0.778574,20896.0,20895.0,0.052]
[1673735638511,1.257134,20896.0,20895.0,0.052]
[1673735639552,1.257134,20896.0,20892.0,0.1137]
[1673735639815,1.39945915,20896.0,20892.0,0.25709006]
[1673735640313,1.09945915,20896.0,20892.0,0.25709006]
[1673735640846,1.09945915,20896.0,20892.0,0.47217515]
[1673735642330,1.09945915,20896.0,20893.0,1.10085564]
[1673735642608,1.09945915,20896.0,20893.0,0.14339006]
[1673735643598,1.08744915,20896.0,20893.0,0.14339006]
[1673735643849,0.60888915,20896.0,20893.0,0.14339006]
[1673735644098,0.62088915,20896.0,20893.0,0.14339006]
[1673735644350,0.466564,20896.0,20893.0,0.14339006]
[1673735644612,0.479564,20896.0,20893.0,0.19639006]
[1673735644864,0.466564,20896.0,20893.0,0.14339006]
[1673735645133,0.479564,20896.0,20893.0,0.19639006]
[1673735646398,0.013,20896.0,20893.0,0.19639006]
[1673735647691,0.013,20896.0,20893.0,0.41147515]
[1673735647977,0.013,20896.0,20893.0,1.09187587]
[1673735648250,0.013,20896.0,20893.0,1.00380415]
[1673735649717,0.013,20896.0,20894.0,0.14339006]
[1673735651011,0.013,20896.0,20893.0,1.00380415]
[1673735651251,0.14232515,20897.0,20894.0,0.14339006]
[1673735651506,0.013,20896.0,20894.0,0.052]
[1673735652267,0.14232515,20897.0,20894.0,0.14339006]
[1673735652512,0.14232515,20899.0,20896.0,0.1145]
[1673735652781,0.50604418,20900.0,20896.0,1.40570901]
[1673735653035,0.50604418,20900.0,20897.0,0.19072595]
[1673735653299,0.50604418,20900.0,20896.0,1.40570801]
[1673735653300,0.013,20897.0,20896.0,1.40570801]
[1673735653540,0.50604418,20900.0,20896.0,1.21498806]
[1673735653793,0.01,20899.0,20898.0,0.1145]
[1673735654039,0.01,20899.0,20898.0,1.071528]
[1673735655056,0.158,20900.0,20899.0,0.05]
[1673735655311,0.158,20900.0,20899.0,0.528491]
[1673735656072,0.158,20900.0,20899.0,0.478491]
[1673735656326,0.15,20900.0,20899.0,0.478491]
[1673735656572,0.14232515,20902.0,20899.0,0.956982]
[1673735656815,0.14232515,20902.0,20899.0,1.14770795]
[1673735657063,0.011,20900.0,20899.0,1.019982]
[1673735657307,0.35604418,20903.0,20899.0,0.956982]
[1673735657562,0.011,20902.0,20899.0,1.21070795]
[1673735657805,0.011,20902.0,20899.0,1.019982]
[1673735658047,0.14232515,20903.0,20899.0,0.956982]
[1673735658293,0.011,20900.0,20899.0,1.21070795]
[1673735658545,0.011,20900.0,20899.0,1.019982]
[1673735658795,0.011,20900.0,20899.0,1.134482]
[1673735659290,0.14232515,20903.0,20899.0,1.071482]
[1673735659542,0.011,20902.0,20900.0,0.1145]
[1673735659787,0.011,20902.0,20901.0,0.478446]
[1673735660276,0.14232515,20904.0,20901.0,0.478446]
[1673735660510,0.011,20903.0,20901.0,0.66917195]
[1673735660763,0.44232515,20904.0,20901.0,0.478446]
[1673735661022,0.35604418,20904.0,20901.0,0.478446]
[1673735661278,0.011,20902.0,20901.0,0.541446]
[1673735662282,0.38232515,20904.0,20901.0,0.478446]
[1673735662541,0.251,20904.0,20901.0,0.478446]
[1673735663034,0.011,20902.0,20901.0,0.541446]
[1673735663291,0.24,20904.0,20901.0,0.478446]
[1673735663544,0.236,20904.0,20901.0,0.541446]
[1673735664776,0.236,20904.0,20901.0,0.063]
[1673735665025,0.01904,20903.0,20901.0,0.063]
[1673735665259,0.31904,20903.0,20901.0,0.063]
[1673735665503,0.01904,20903.0,20901.0,0.063]
[1673735666011,0.236,20904.0,20901.0,0.063]
[1673735666259,0.225,20904.0,20900.0,0.478463]
[1673735666516,0.011,20903.0,20901.0,0.063]
[1673735666760,0.225,20904.0,20900.0,0.66918895]
[1673735667018,0.236,20904.0,20901.0,0.063]
[1673735667294,0.225,20904.0,20900.0,0.956914]
[1673735667569,0.011,20903.0,20901.0,0.063]
[1673735667828,0.011,20903.0,20901.0,0.541445]
[1673735668603,0.225,20904.0,20901.0,0.956891]
[1673735668866,0.236,20904.0,20901.0,1.019891]
[1673735669139,0.225,20904.0,20901.0,0.956891]
[1673735669400,0.011,20903.0,20901.0,1.019891]
[1673735669659,0.2124,20904.0,20901.0,0.956891]
[1673735669912,0.2224,20904.0,20901.0,1.029891]
[1673735682572,0.19516,20904.0,20901.0,1.029891]
[1673735685607,0.19516,20904.0,20901.0,0.551445]
[1673735687098,0.2142,20904.0,20901.0,0.551445]
[1673735687350,0.69258,20904.0,20901.0,0.073]
[1673735687620,0.66854,20904.0,20901.0,0.073]
[1673735688122,0.19016,20904.0,20901.0,0.073]
[1673735688627,0.19016,20904.0,20901.0,1.029888]
[1673735691854,0.19016,20904.0,20901.0,1.17327806]
[1673735694709,0.19016,20904.0,20901.0,1.38836315]
[1673735695432,0.19016,20904.0,20902.0,0.14339006]
[1673735695685,0.166144,20904.0,20903.0,1.62859006]
[1673735696186,0.166144,20904.0,20903.0,1.57859006]
[1673735697204,0.156144,20904.0,20903.0,1.57859006]
[1673735697466,0.167144,20904.0,20903.0,1.64459006]
[1673735700487,0.167144,20904.0,20903.0,3.50056668]
[1673735700736,0.167144,20904.0,20903.0,3.64395674]
[1673735701494,0.167144,20904.0,20903.0,3.78734423]
[1673735701742,0.16692,20904.0,20903.0,3.42887165]
[1673735701987,0.16692,20904.0,20903.0,3.78734423]
[1673735703492,0.16692,20904.0,20903.0,3.78670223]
[1673735704037,0.16692,20904.0,20903.0,3.78687311]
[1673735704478,0.16692,20904.0,20903.0,3.35655955]
[1673735704725,0.16692,20904.0,20903.0,1.97347142]
[1673735705221,0.16692,20904.0,20903.0,1.75853228]
[1673735705721,0.16692,20904.0,20903.0,3.35643601]
[1673735705965,0.16692,20904.0,20903.0,3.64321613]
[1673735706473,0.16692,20904.0,20903.0,3.35643601]
[1673735706721,0.16692,20904.0,20903.0,3.49969468]
[1673735706979,0.16692,20904.0,20903.0,3.35643601]
[1673735707223,0.16692,20904.0,20903.0,2.54274067]
[1673735707470,0.16692,20904.0,20903.0,1.9734089]
[1673735707718,0.16692,20904.0,20903.0,1.75846976]
[1673735707968,0.16692,20904.0,20903.0,2.54273632]
[1673735708711,0.14920143,20904.0,20903.0,1.9734089]
[1673735710474,0.01026574,20905.0,20904.0,0.13695818]
[1673735710727,0.01026574,20905.0,20904.0,2.83235773]
[1673735710978,0.01026574,20905.0,20904.0,3.78919767]
[1673735711232,0.01026574,20905.0,20904.0,3.43136784]
[1673735711493,0.01026574,20905.0,20904.0,3.45636784]
[1673735712581,0.01026574,20905.0,20904.0,3.43136784]
[1673735712827,0.01026574,20905.0,20904.0,3.78897595]
[1673735713078,0.01026574,20905.0,20904.0,3.43136784]
[1673735713599,0.01026574,20905.0,20904.0,3.86936784]
[1673735713860,0.01026574,20905.0,20904.0,3.14925598]
[1673735714104,0.01026574,20905.0,20904.0,3.56936784]
[1673735714595,0.01026574,20905.0,20904.0,3.14925598]
[1673735714859,0.01026574,20905.0,20904.0,3.50665451]
[1673735715871,0.01026574,20905.0,20904.0,4.35506953]
[1673735716383,0.01026574,20905.0,20904.0,4.05506953]
[1673735716631,0.01026574,20905.0,20904.0,3.51497109]
[1673735716872,0.01026574,20905.0,20904.0,3.50647109]
[1673735717127,0.01026574,20905.0,20904.0,3.86936784]
[1673735717370,0.25026574,20905.0,20904.0,3.86936784]
[1673735718166,0.25026574,20905.0,20904.0,3.50644133]
[1673735718422,0.25026574,20905.0,20904.0,3.79214547]
[1673735718695,0.25026574,20905.0,20904.0,3.7921362]
[1673735718938,0.25026574,20905.0,20904.0,3.64924088]
[1673735719191,0.25026574,20905.0,20904.0,3.43495085]
[1673735719732,0.25026574,20905.0,20904.0,3.64923852]
[1673735719985,0.25026574,20905.0,20904.0,3.43495085]
[1673735720275,0.25026574,20905.0,20904.0,3.7921362]
[1673735720784,0.25026574,20905.0,20904.0,3.6285362]
[1673735721034,0.25026574,20905.0,20904.0,2.52875853]
[1673735721537,0.25026574,20905.0,20904.0,3.48552701]
[1673735721786,0.22138631,20905.0,20904.0,2.24306366]
[1673735722309,0.22138631,20905.0,20904.0,1.23171218]
[1673735723596,0.22138631,20905.0,20904.0,1.09371218]
[1673735723847,0.22238631,20905.0,20904.0,1.23171218]
[1673735724605,0.22238631,20905.0,20904.0,1.37454653]
[1673735724849,0.22138631,20905.0,20904.0,1.23654653]
[1673735725101,0.22238631,20905.0,20904.0,1.37554653]
[1673735725349,0.22238631,20905.0,20904.0,0.41879253]
[1673735725852,0.22238631,20905.0,20904.0,1.52191698]
[1673735726108,0.22238631,20905.0,20904.0,1.80761185]
[1673735726356,0.22238631,20905.0,20904.0,3.47167389]
[1673735726879,0.22238631,20905.0,20904.0,2.22919398]
[1673735727139,0.22238631,20905.0,20904.0,3.4716764]
[1673735727662,0.22238631,20905.0,20904.0,3.47167337]
[1673735728665,0.22238631,20905.0,20904.0,2.22919398]
[1673735729670,0.22238631,20905.0,20904.0,2.37212048]
[1673735729920,0.22238631,20905.0,20904.0,2.22919398]
[1673735730161,0.001,20905.0,20904.0,2.37213822]
[1673735730441,0.01032823,20907.0,20906.0,0.00826786]
[1673735730694,0.01032823,20907.0,20906.0,1.19479273]
[1673735730946,0.01032823,20907.0,20906.0,3.46890982]
[1673735731210,0.01032823,20907.0,20906.0,4.42556691]
[1673735731480,0.01032823,20907.0,20906.0,4.99893559]
[1673735731748,0.01032823,20907.0,20906.0,4.38160459]
[1673735731991,0.01032823,20907.0,20906.0,3.32225185]
[1673735732275,0.01032823,20907.0,20906.0,3.32225102]
[1673735732536,0.01032823,20907.0,20906.0,3.322253]
[1673735733169,0.01032823,20907.0,20906.0,3.60800166]
[1673735733327,0.01032823,20907.0,20906.0,3.322253]
[1673735733562,0.02321878,20907.0,20906.0,3.60801456]
[1673735733860,0.02321878,20907.0,20906.0,3.49351456]
[1673735734098,0.02321878,20907.0,20906.0,3.34216791]
[1673735734362,0.02321878,20907.0,20906.0,3.12777263]
[1673735734615,0.02321878,20907.0,20906.0,3.48501456]
[1673735735131,0.02321878,20907.0,20906.0,3.96221625]
[1673735735349,0.02321878,20907.0,20906.0,3.35064749]
[1673735735641,0.6189338,20911.0,20907.0,0.05]
[1673735735898,0.6189338,20911.0,20908.0,0.956562]
[1673735736155,0.6189338,20911.0,20909.0,0.0001667]
[1673735736408,0.6189338,20911.0,20910.0,0.47824]
[1673735736916,0.6189338,20911.0,20910.0,0.95648]
[1673735737712,0.6199338,20911.0,20910.0,0.95648]
[1673735738249,0.6209338,20911.0,20910.0,1.09548]
[1673735739241,0.6209338,20911.0,20907.0,0.14292649]
[1673735739242,1.5405908,20911.0,20907.0,0.14292649]
[1673735739500,1.5405908,20911.0,20906.0,0.00826786]
[1673735739501,0.71783664,20910.0,20906.0,0.00826786]
[1673735739750,0.14232515,20908.0,20906.0,0.00826786]
[1673735740004,0.31979,20907.0,20906.0,0.00826786]
[1673735740259,1.10488185,20907.0,20906.0,0.00826786]
[1673735740762,1.31860088,20907.0,20906.0,6.786e-05]
[1673735741015,1.31860088,20907.0,20904.0,0.13695818]
[1673735741264,0.228,20905.0,20904.0,0.13695818]
[1673735741517,0.96229,20905.0,20904.0,0.13695818]
[1673735742279,1.440644,20905.0,20904.0,0.13695818]
[1673735742533,1.918998,20905.0,20904.0,0.13695818]
[1673735742792,2.049998,20905.0,20904.0,0.13695818]
[1673735744064,2.42618229,20905.0,20904.0,0.13695818]
[1673735744326,2.754238,20905.0,20904.0,0.13695818]
[1673735744572,2.89656315,20905.0,20904.0,0.13695818]
[1673735744821,3.40682365,20905.0,20904.0,0.13695818]
[1673735745081,3.27582365,20905.0,20904.0,0.13695818]
[1673735745339,3.62354268,20905.0,20904.0,0.13695818]
[1673735745592,3.48121753,20905.0,20904.0,0.13695818]
[1673735745842,3.48221753,20905.0,20904.0,0.13695818]
[1673735746099,3.9563197,20905.0,20904.0,0.13695818]
[1673735746369,3.74111013,20905.0,20904.0,0.13695818]
[1673735746633,3.4545592,20905.0,20904.0,0.13695818]
[1673735746890,3.9648197,20905.0,20904.0,0.13695818]
[1673735747385,4.25137063,20905.0,20904.0,0.13695818]
[1673735747935,3.63726846,20905.0,20904.0,0.13695818]
[1673735748202,3.77226846,20905.0,20904.0,0.13695818]
[1673735748402,3.62847763,20905.0,20904.0,0.13695818]
[1673735749960,4.10567932,20905.0,20904.0,0.13695818]
[1673735750480,3.89196029,20905.0,20904.0,0.13695818]
[1673735750752,1.8958581,20905.0,20904.0,0.13695818]
[1673735751019,1.753198,20905.0,20904.0,0.13695818]
[1673735751261,1.566698,20905.0,20904.0,0.13695818]
[1673735752279,1.866698,20905.0,20904.0,0.13695818]
[1673735752826,1.789398,20905.0,20904.0,0.13695818]
[1673735754349,1.489398,20905.0,20904.0,0.13695818]
[1673735755385,1.354398,20905.0,20904.0,0.13695818]
[1673735755640,1.786398,20905.0,20904.0,0.13695818]
[1673735756647,1.176044,20905.0,20904.0,0.13695818]
[1673735756894,1.308044,20905.0,20904.0,0.13695818]
[1673735757143,1.008044,20905.0,20904.0,0.13695818]
[1673735757661,0.2099,20905.0,20904.0,0.13695818]
[1673735758749,0.05691,20905.0,20904.0,0.13695818]
[1673735758967,0.22,20908.0,20904.0,1.09371218]
[1673735759229,0.22,20908.0,20905.0,0.19072595]
[1673735759495,0.22,20908.0,20906.0,1.70321895]
[1673735759755,0.22,20908.0,20907.0,0.05]
[1673735760004,0.22,20908.0,20907.0,0.528308]
[1673735760514,0.22,20908.0,20907.0,0.683308]
[1673735760515,0.234,20908.0,20907.0,0.683308]
[1673735760773,0.22,20908.0,20907.0,0.683308]
[1673735761026,0.235,20908.0,20907.0,0.683308]
[1673735761287,0.22,20908.0,20907.0,0.683308]
[1673735761543,0.234,20908.0,20907.0,0.683308]
[1673735761794,0.22,20908.0,20907.0,0.683308]
[1673735762071,0.235,20908.0,20907.0,0.683308]
[1673735762843,0.22,20908.0,20907.0,0.683308]
[1673735763343,0.014,20908.0,20907.0,0.979308]
[1673735763669,0.6189338,20911.0,20907.0,2.33066838]
[1673735763992,0.6189338,20911.0,20910.0,0.1549]
[1673735764430,0.6189338,20911.0,20910.0,1.58962]
[1673735764690,0.6189338,20911.0,20910.0,1.63962]
[1673735765710,0.6329338,20911.0,20910.0,1.63962]
[1673735765964,0.6189338,20911.0,20910.0,1.63962]
[1673735766222,0.6329338,20911.0,20910.0,1.63962]
[1673735766473,0.6189338,20911.0,20910.0,1.63962]
[1673735766719,0.6329338,20911.0,20910.0,1.93962]
[1673735766976,0.6189338,20911.0,20910.0,2.41682169]
[1673735767487,0.6328549,20911.0,20910.0,2.11682169]
[1673735767749,0.6328549,20911.0,20910.0,2.42532169]
[1673735768492,0.6188549,20911.0,20910.0,2.84652097]
[1673735768760,0.6328549,20911.0,20910.0,2.42532169]
[1673735769075,0.6188549,20911.0,20910.0,2.42532169]
[1673735769248,0.6328549,20911.0,20910.0,2.42532169]
[1673735769500,0.6188549,20911.0,20910.0,2.42532169]
[1673735769765,0.6188549,20911.0,20910.0,2.84644677]
[1673735770032,0.6188549,20911.0,20910.0,2.89449341]
[1673735770296,0.6328549,20911.0,20910.0,2.47336833]
[1673735770529,0.01165213,20914.0,20913.0,0.31159623]
[1673735770784,0.01165213,20914.0,20913.0,1.82400923]
[1673735771800,0.01165213,20914.0,20913.0,1.26793823]
[1673735772046,0.00150916,20916.0,20913.0,1.26793823]
[1673735773323,0.00150916,20916.0,20914.0,9.222e-05]
[1673735773573,0.01361801,20915.0,20914.0,0.47822322]
[1673735774130,0.00361801,20915.0,20914.0,0.47822322]
[1673735774846,0.00361801,20915.0,20914.0,0.95637122]
[1673735775108,0.01861801,20915.0,20914.0,0.95637122]
[1673735775636,0.015,20915.0,20914.0,0.95637122]
[1673735776131,0.015,20915.0,20914.0,0.956279]
[1673735779680,0.015,20915.0,20914.0,0.95637122]
[1673735782711,0.00150916,20916.0,20915.0,0.05]
[1673735782959,0.00150916,20916.0,20915.0,0.95625]
[1673735783942,0.01650916,20916.0,20915.0,0.95625]
[1673735784433,0.01650916,20916.0,20915.0,1.00625]
[1673735784954,0.01650916,20916.0,20915.0,1.08415]
[1673735784955,0.0023038,20916.0,20915.0,1.08415]
[1673735786230,0.0023038,20916.0,20915.0,1.56135169]
[1673735786517,0.0023038,20916.0,20915.0,1.98601785]
[1673735786813,0.0023038,20916.0,20915.0,1.56135169]
[1673735787022,0.0023038,20916.0,20915.0,1.03415]
[1673735790411,0.0023038,20916.0,20915.0,1.08415]
[1673735791135,0.01243884,20920.0,20916.0,0.05092914]
[1673735791371,0.01243884,20920.0,20916.0,1.00713314]
[1673735793058,0.02864439,20917.0,20916.0,1.00713314]
[1673735798006,0.02864439,20917.0,20916.0,0.95713314]
[1673735798256,0.01674607,20917.0,20916.0,1.91340226]
[1673735798722,0.01674607,20917.0,20916.0,2.57024741]
[1673735799482,0.01674607,20917.0,20916.0,2.05586348]
[1673735800814,0.01674607,20917.0,20916.0,2.71293977]
[1673735801524,0.01674607,20917.0,20916.0,2.27017391]
[1673735801779,0.01674607,20917.0,20916.0,2.71293737]
[1673735803896,0.01674607,20917.0,20916.0,2.27017391]
[1673735804140,0.01674607,20917.0,20916.0,2.05586348]
[1673735805408,0.01674607,20917.0,20916.0,3.04467691]
[1673735805673,0.01674607,20917.0,20916.0,3.34115407]
[1673735805904,0.01674607,20917.0,20916.0,3.29035247]
[1673735806412,0.01674607,20917.0,20916.0,3.71961383]
[1673735806658,0.01243884,20920.0,20918.0,0.05]
[1673735806901,0.01243884,20920.0,20919.0,2.61038609]